bitfinex-derivatives/quotes_ETHF0:USTF0_20250502
["timestamp","ask_amount","ask_price","bid_price","bid_amount"]
[1746166239909,2.83097,1833.5,1833.4,1.09058]
[1746166243622,2.83097,1833.5,1833.4,2.83518]
[1746166248924,2.83093,1833.5,1833.4,2.83518]
[1746166249225,5.838,1833.7,1833.6,1.09047]
[1746166249421,7.4488,1833.7,1833.6,1.09047]
[1746166249614,7.4488,1833.7,1833.6,2.63237]
[1746166249814,2.70121,1833.7,1833.6,1.5419]
[1746166250125,1.09052,1833.6,1833.4,1.09059]
[1746166250424,1.6108,1833.6,1833.5,1.09053]
[1746166250623,1.6108,1833.6,1833.5,2.72893]
[1746166251827,2.70127,1833.6,1833.5,2.72893]
[1746166252724,2.70132,1833.6,1833.5,1.09053]
[1746166253021,1.6108,1833.6,1833.5,1.09053]
[1746166253217,1.6108,1833.6,1833.5,2.72893]
[1746166253726,4.8862,1833.8,1833.7,1.09041]
[1746166254021,6.07635,1833.8,1833.7,1.09041]
[1746166254421,6.07635,1833.8,1833.7,2.68211]
[1746166256426,6.07635,1833.8,1833.7,1.5917]
[1746166257123,6.07635,1833.8,1833.5,1.09051]
[1746166257124,4.986,1833.8,1833.5,1.09051]
[1746166257330,1.09047,1833.6,1833.5,1.09051]
[1746166258230,2.77536,1833.7,1833.5,1.09051]
[1746166258526,1.09047,1833.6,1833.5,1.09051]
[1746166258733,1.6849,1833.6,1833.5,1.09051]
[1746166258920,2.77541,1833.6,1833.4,3.5298]
[1746166259120,1.6849,1833.6,1833.5,1.09053]
[1746166259330,2.77537,1833.6,1833.5,1.09053]
[1746166260429,2.77537,1833.6,1833.4,7.82815]
[1746166260630,1.6737,1833.5,1833.4,4.62035]
[1746166260829,2.76423,1833.5,1833.4,0.2929]
[1746166261223,1.6737,1833.5,1833.4,1.38349]
[1746166261526,1.6737,1833.5,1833.4,3.00359]
[1746166262229,6.92846,1833.7,1833.5,1.09049]
[1746166262429,2.76417,1833.6,1833.5,2.64349]
[1746166262823,2.76417,1833.6,1833.5,1.553]
[1746166263130,11.28749977,1833.7,1833.6,1.09047]
[1746166263429,12.37794977,1833.7,1833.5,5.8979]
[1746166263631,1.6478,1833.6,1833.5,5.8979]
[1746166269133,7.13389977,1833.7,1833.6,1.09047]
[1746166269329,7.11449977,1833.8,1833.7,1.09041]
[1746166269529,8.20484977,1833.8,1833.7,1.09041]
[1746166269725,7.11449977,1833.8,1833.7,1.09041]
[1746166270134,7.11449977,1833.8,1833.7,1.38301]
[1746166270431,8.20484977,1833.8,1833.7,1.38301]
[1746166270630,7.11449977,1833.8,1833.7,1.38301]
[1746166271431,8.20484977,1833.8,1833.7,0.2926]
[1746166271633,7.11449977,1833.8,1833.7,1.38301]
[1746166272438,1.665,1833.8,1833.7,1.38301]
[1746166272637,2.75535,1833.8,1833.7,1.38301]
[1746166272837,1.665,1833.8,1833.7,1.38301]
[1746166274241,2.75535,1833.8,1833.7,1.38301]
[1746166274441,1.665,1833.8,1833.7,1.38301]
[1746166276142,2.75535,1833.8,1833.7,1.38301]
[1746166278046,1.665,1833.8,1833.7,1.38301]
[1746166278540,2.75535,1833.8,1833.7,1.38301]
[1746166279144,1.665,1833.8,1833.7,1.38301]
[1746166280045,7.04289977,1833.9,1833.8,1.09035]
[1746166280254,7.04289977,1833.9,1833.8,9.14035]
[1746166280446,5.44949977,1833.9,1833.8,9.14035]
[1746166282251,10.49815286,1834.0,1833.9,1.09029]
[1746166282252,3.2721,1834.0,1833.9,1.09029]
[1746166282447,3.2721,1834.0,1833.9,2.73199]
[1746166283749,1.5939,1834.0,1833.9,2.73199]
[1746166283954,1.5939,1834.0,1833.9,11.33599]
[1746166284950,1.5939,1834.0,1833.9,6.33599]
[1746166288855,0.7762,1834.0,1833.9,11.33599]
[1746166289256,5.44949977,1834.2,1834.1,1.09018]
[1746166289457,5.44949977,1834.2,1834.1,4.29798]
[1746166290057,1.7308,1834.3,1834.2,1.09012]
[1746166290256,1.7308,1834.3,1834.2,2.74362]
[1746166292561,1.7308,1834.3,1834.2,43.54362]
[1746166293961,0.7771,1834.4,1834.3,1.09006]
[1746166294259,1.7011,1834.4,1834.3,6.02516]
[1746166294462,1.7011,1834.4,1834.3,4.29786]
[1746166297566,0.7772,1834.5,1834.4,1.09]
[1746166297762,1.5995,1834.5,1834.4,2.7566]
[1746166298855,1.5995,1834.5,1834.4,3.0486]
[1746166299066,1.5995,1834.5,1834.4,4.6936]
[1746166299250,1.5995,1834.5,1834.4,6.3847]
[1746166300066,1.5995,1834.5,1834.4,1.382]
[1746166303382,1.5995,1834.5,1834.4,3.0462]
[1746166307275,1.5995,1834.5,1834.4,1.382]
[1746166307475,10.89724,1834.5,1834.4,0.292]
[1746166308172,14.59324,1834.5,1834.4,0.292]
[1746166311473,9.59324,1834.5,1834.4,0.292]
[1746166312576,5.2955,1834.5,1834.4,1.382]
[1746166314078,1.5995,1834.5,1834.4,1.382]
[1746166315075,1.5995,1834.5,1834.4,4.6474]
[1746166315283,6.6153,1834.6,1834.5,1.08994]
[1746166315484,6.6153,1834.6,1834.5,4.38704]
[1746166315677,5.838,1834.6,1834.5,4.38704]
[1746166315980,7.5066,1834.6,1834.5,4.38704]
[1746166317383,1.6686,1834.6,1834.5,4.38704]
[1746166318184,1.6686,1834.6,1834.5,3.2971]
[1746166318393,1.6686,1834.6,1834.5,4.38704]
[1746166318583,1.6686,1834.6,1834.5,4.67854]
[1746166318780,2.75848,1834.6,1834.5,0.2915]
[1746166319180,6.45448,1834.6,1834.5,0.2915]
[1746166321685,5.3646,1834.6,1834.5,1.38144]
[1746166322380,1.6686,1834.6,1834.5,0.2915]
[1746166322580,1.6686,1834.6,1834.5,1.38144]
[1746166322776,2.75848,1834.6,1834.5,0.2915]
[1746166322980,5.96628,1834.6,1834.5,0.2915]
[1746166323181,12.29248,1834.6,1834.5,0.2915]
[1746166327589,15.91323903,1834.6,1834.5,0.2915]
[1746166327781,15.91323903,1834.6,1834.5,1.38144]
[1746166327982,15.91323903,1834.6,1834.5,0.2915]
[1746166331191,12.9122011,1834.6,1834.5,0.2915]
[1746166332190,16.6082011,1834.6,1834.5,0.2915]
[1746166334191,17.04148507,1834.6,1834.5,0.2915]
[1746166334489,20.24928507,1834.6,1834.5,0.2915]
[1746166334691,22.0780363,1834.6,1834.5,0.2915]
[1746166335292,27.0780363,1834.6,1834.5,1e-08]
[1746166335684,1.09006,1834.3,1834.2,1.09009]
[1746166335978,1.09006,1834.3,1834.2,41.89009]
[1746166336181,3.696,1834.3,1834.2,41.89009]
[1746166336790,3.696,1834.3,1834.2,43.60709]
[1746166337189,2.70697,1834.5,1834.4,1.09]
[1746166337783,11.98246184,1834.6,1834.4,1.6279]
[1746166337983,2.70694,1834.5,1834.3,2.6985]
[1746166338186,1.617,1834.4,1834.3,2.6985]
[1746166338591,5.25151418,1834.4,1834.3,2.6985]
[1746166338792,6.34151418,1834.4,1834.3,4.3428]
[1746166339488,5.25151418,1834.4,1834.3,4.3428]
[1746166342092,3.63451418,1834.4,1834.3,4.3428]
[1746166342689,5.99551418,1834.5,1834.4,1.09]
[1746166342989,5.21641418,1834.5,1834.4,2.8038]
[1746166344287,3.63451418,1834.5,1834.4,2.8038]
[1746166345688,0.7792,1834.6,1834.4,1.7138]
[1746166345886,1.09,1834.4,1834.3,1.6085]
[1746166346196,2.69148,1834.5,1834.3,4.40986]
[1746166346792,1.6015,1834.4,1834.3,4.40986]
[1746166347595,2.6915,1834.4,1834.3,3.3198]
[1746166347781,2.6915,1834.4,1834.3,1.6085]
[1746166347986,1.6015,1834.4,1834.3,2.69856]
[1746166348696,2.6915,1834.4,1834.3,1.6085]
[1746166350294,1.09006,1834.3,1834.2,44.393]
[1746166350490,6.14016,1834.3,1834.2,44.393]
[1746166351292,6.14016,1834.3,1834.2,4.68312]
[1746166351491,5.0501,1834.3,1834.2,4.68312]
[1746166353198,5.0501,1834.3,1834.2,3.593]
[1746166353385,5.0501,1834.3,1834.2,4.68312]
[1746166354893,6.14016,1834.3,1834.2,3.593]
[1746166356093,5.0501,1834.3,1834.2,4.68312]
[1746166356299,6.14016,1834.3,1834.2,3.593]
[1746166356500,6.14016,1834.3,1834.2,4.68312]
[1746166357500,6.14016,1834.3,1834.2,3.593]
[1746166357698,6.14016,1834.3,1834.2,4.68312]
[1746166358305,9.77467418,1834.3,1834.2,4.68312]
[1746166360600,9.77467418,1834.3,1834.2,3.593]
[1746166361402,9.77467418,1834.3,1834.2,4.68312]
[1746166361699,9.77467418,1834.3,1834.2,3.593]
[1746166362102,9.77467418,1834.3,1834.2,1.09012]
[1746166362404,1.09012,1834.2,1834.1,43.53137]
[1746166362604,2.68122,1834.2,1834.1,43.53137]
[1746166363199,2.68122,1834.2,1834.1,40.8]
[1746166364117,2.68122,1834.2,1834.1,41.89018]
[1746166365615,6.31573418,1834.2,1834.1,41.89018]
[1746166366222,5.22561418,1834.2,1834.1,43.47758]
[1746166366616,3.63451418,1834.2,1834.1,45.06408]
[1746166367619,3.63451418,1834.2,1834.1,48.27188]
[1746166368827,3.63451418,1834.3,1834.2,1.09012]
[1746166369020,3.63451418,1834.3,1834.2,2.68732]
[1746166370426,3.63451418,1834.3,1834.2,6.27532]
[1746166371323,3.63451418,1834.3,1834.2,11.27532]
[1746166372218,3.3430142,1834.3,1834.2,11.27532]
[1746166372927,3.3430142,1834.5,1834.4,1.09]
[1746166373126,3.3430142,1834.5,1834.4,3.2078]
[1746166373830,3.3430142,1834.5,1834.4,4.2978]
[1746166374023,3.3430142,1834.5,1834.4,7.7015]
[1746166376531,1.6171,1834.8,1834.7,1.08982]
[1746166376921,1.6171,1834.8,1834.7,4.45512]
[1746166377922,1.6171,1834.8,1834.7,6.06462]
[1746166379329,7.04469977,1835.0,1834.9,1.0897]
[1746166379934,8.13436977,1835.0,1834.8,2.81614]
[1746166380230,1.08976,1834.8,1834.6,3.2078]
[1746166380430,3.1574,1834.7,1834.6,4.29765]
[1746166380625,4.8449,1834.7,1834.6,3.2078]
[1746166380936,4.8449,1834.7,1834.6,4.29768]
[1746166381932,5.93472,1834.7,1834.6,3.2078]
[1746166382134,5.93472,1834.7,1834.6,4.29768]
[1746166382435,5.93472,1834.7,1834.6,3.2078]
[1746166382626,5.93472,1834.7,1834.6,4.29768]
[1746166383034,5.93472,1834.7,1834.6,3.2078]
[1746166383234,5.93472,1834.7,1834.4,4.29776]
[1746166383235,1.08988,1834.6,1834.4,4.29776]
[1746166383427,1.08994,1834.5,1834.4,4.29776]
[1746166383627,1.7171,1834.6,1834.4,4.29776]
[1746166383828,2.807,1834.6,1834.5,1.08994]
[1746166384136,11.503,1834.6,1834.5,1.08994]
[1746166384337,6.503,1834.6,1834.5,1.08994]
[1746166385338,1.08994,1834.5,1834.4,4.29775]
[1746166385536,2.71014,1834.5,1834.4,3.2078]
[1746166386338,6.40614,1834.5,1834.3,1.09003]
[1746166386538,5.91081,1834.4,1834.2,4.67709]
[1746166386840,1.6202,1834.3,1834.2,4.67709]
[1746166390141,2.71026,1834.3,1834.2,3.587]
[1746166392544,1.6202,1834.3,1834.2,4.67712]
[1746166394438,2.71026,1834.3,1834.2,3.587]
[1746166395643,2.71026,1834.3,1834.2,4.67712]
[1746166396143,6.40626,1834.3,1834.2,4.67712]
[1746166397353,2.71026,1834.3,1834.2,4.67712]
[1746166398145,6.40626,1834.3,1834.2,4.67712]
[1746166398946,5.3162,1834.3,1834.2,4.67712]
[1746166401248,1.6202,1834.3,1834.2,4.67712]
[1746166401747,1.6202,1834.3,1834.2,3.587]
[1746166401748,2.71026,1834.3,1834.2,3.587]
[1746166401943,1.6202,1834.3,1834.2,3.587]
[1746166402248,1.6202,1834.3,1834.2,4.67712]
[1746166402748,2.71026,1834.3,1834.2,3.587]
[1746166403949,2.71026,1834.3,1834.1,45.15642]
[1746166404149,1.6775,1834.2,1834.1,45.15642]
[1746166406548,3.2006,1834.4,1834.3,1.09006]
[1746166406755,7.10149977,1834.5,1834.4,1.09]
[1746166406953,7.10149977,1834.5,1834.4,2.7493]
[1746166407154,7.10149977,1834.5,1834.4,4.4331]
[1746166407549,5.44949977,1834.5,1834.4,4.4331]
[1746166409956,1.652,1834.7,1834.6,1.08988]
[1746166412361,1.652,1834.7,1834.6,2.84208]
[1746166413863,1.652,1834.7,1834.6,4.55668]
[1746166420362,2.74182,1834.7,1834.6,4.55668]
[1746166420665,1.652,1834.7,1834.5,3.2078]
[1746166420866,1.08984,1834.7,1834.6,1.08988]
[1746166421258,4.78584,1834.7,1834.6,1.08988]
[1746166422164,1.08984,1834.7,1834.6,1.08988]
[1746166422564,1.08984,1834.7,1834.5,2.70279]
[1746166423059,4.78584,1834.7,1834.5,2.70279]
[1746166423963,1.08988,1834.6,1834.4,4.46425]
[1746166424269,1.09,1834.4,1834.3,3.583]
[1746166424462,1.09012,1834.2,1834.1,40.8]
[1746166425167,9.56582,1834.2,1834.1,40.8]
[1746166425759,9.56582,1834.2,1834.0,1.09023]
[1746166425963,1.09023,1834.0,1833.9,7.27895468]
[1746166427267,4.78623,1834.0,1833.9,7.27895468]
[1746166427473,12.99403,1834.0,1833.9,7.27895468]
[1746166429374,9.78623,1834.0,1833.9,7.27895468]
[1746166429576,12.99403,1834.0,1833.9,7.27895468]
[1746166430570,1.09034,1833.9,1833.7,1.09041]
[1746166430770,1.7283,1833.8,1833.7,1.09041]
[1746166431677,2.67752,1833.9,1833.7,1.09039]
[1746166431977,1.5872,1833.9,1833.8,1.09035]
[1746166432374,1.5872,1833.9,1833.8,4.38695]
[1746166433178,2.81857,1834.0,1833.9,1.09029]
[1746166433376,8.12691977,1834.1,1833.9,1.09029]
[1746166433579,1.09023,1834.0,1833.9,1.09029]
[1746166433878,1.09023,1834.0,1833.9,2.74609]
[1746166434076,1.09023,1834.0,1833.9,1.6558]
[1746166434277,4.78623,1834.0,1833.9,1.6558]
[1746166435488,6.49423,1834.0,1833.9,1.6558]
[1746166435888,1.09029,1833.9,1833.8,2.73371]
[1746166436189,1.708,1834.0,1833.9,1.09029]
[1746166436588,1.708,1834.0,1833.9,2.73519]
[1746166437193,2.79823,1834.0,1833.9,1.6449]
[1746166437889,2.79823,1834.0,1833.9,2.73519]
[1746166438092,2.79823,1834.0,1833.9,1.6449]
[1746166438288,2.79823,1834.0,1833.9,2.73519]
[1746166438489,2.79823,1834.0,1833.9,1.6449]
[1746166439087,1.708,1834.0,1833.9,2.73519]
[1746166440393,1.6065,1834.0,1833.9,2.73519]
[1746166440994,3.2078,1834.2,1834.1,1.09018]
[1746166441493,4.29792,1834.2,1834.1,1.09018]
[1746166441694,2.69662,1834.2,1834.1,1.09018]
[1746166442598,1.6065,1834.2,1834.1,1.09018]
[1746166443290,2.69662,1834.2,1834.1,1.09018]
[1746166443492,2.69662,1834.2,1834.0,4.33049]
[1746166443694,1.6067,1834.1,1834.0,4.33049]
[1746166445096,2.69688,1834.1,1834.0,3.2403]
[1746166445292,2.69688,1834.1,1834.0,1.6009]
[1746166446791,2.69688,1834.1,1834.0,2.69113]
[1746166446986,2.69688,1834.1,1834.0,1.6009]
[1746166447192,2.69688,1834.1,1834.0,2.69113]
[1746166447900,2.69688,1834.1,1834.0,1.6009]
[1746166448399,1.6067,1834.1,1833.8,8.4292]
[1746166448595,1.6123,1834.0,1833.6,44.0078]
[1746166448788,1.09041,1833.7,1833.6,45.09825]
[1746166448994,1.09041,1833.7,1833.6,3.2078]
[1746166449395,1.09041,1833.7,1833.6,4.29827]
[1746166449596,2.7282,1833.8,1833.6,4.29827]
[1746166449793,2.7282,1833.8,1833.7,1.09041]
[1746166450197,6.4242,1833.8,1833.7,1.09041]
[1746166451203,6.4242,1833.8,1833.6,5.96981]
[1746166451394,1.6378,1833.7,1833.6,5.96981]
[1746166451596,3.696,1833.8,1833.7,1.09041]
[1746166451895,3.696,1833.8,1833.7,2.74301]
[1746166452090,1.5947,1833.9,1833.8,1.09035]
[1746166452296,1.6254,1833.9,1833.8,5.95235]
[1746166452502,11.69641,1834.1,1833.9,1.09029]
[1746166452703,8.48861,1834.1,1833.9,2.74284]
[1746166452896,10.11401,1834.1,1833.9,2.74284]
[1746166453096,10.11401,1834.1,1834.0,1.6526]
[1746166453404,7.4634,1834.1,1834.0,2.74283]
[1746166454001,8.55358,1834.1,1834.0,1.6526]
[1746166456401,1.09026,1834.0,1833.8,7.50751]
[1746166456702,2.80456,1834.0,1833.8,8.0274]
[1746166456892,1.7143,1834.0,1833.9,1.09029]
[1746166457097,1.7143,1834.0,1833.9,43.50049]
[1746166458200,1.5666,1834.2,1834.1,1.09018]
[1746166458401,3.1626,1834.2,1834.0,1.6931]
[1746166458602,4.25277,1834.2,1834.0,2.78331]
[1746166458904,1.596,1834.1,1834.0,2.78331]
[1746166459808,2.68618,1834.1,1834.0,2.78331]
[1746166460309,1.596,1834.1,1834.0,2.78331]
[1746166461813,2.68618,1834.1,1834.0,2.78331]
[1746166462109,2.68618,1834.1,1833.9,41.89025]
[1746166462297,1.6133,1834.0,1833.9,41.89025]
[1746166462808,2.70353,1834.0,1833.9,40.8]
[1746166463208,1.09029,1833.9,1833.8,3.2078]
[1746166463507,1.09029,1833.9,1833.7,3.573]
[1746166463508,1.09035,1833.8,1833.7,3.573]
[1746166463900,1.09041,1833.7,1833.6,41.89047]
[1746166464810,2.8112,1833.8,1833.6,41.89047]
[1746166465310,2.81121,1833.7,1833.6,40.8]
[1746166465512,1.7208,1833.7,1833.6,41.89047]
[1746166466209,2.81121,1833.7,1833.6,40.8]
[1746166466410,2.81121,1833.7,1833.6,41.89047]
[1746166467602,2.81121,1833.7,1833.6,40.8]
[1746166468012,2.81121,1833.7,1833.6,41.89047]
[1746166468205,2.81121,1833.7,1833.6,40.8]
[1746166468514,2.81121,1833.7,1833.6,41.89047]
[1746166468912,2.81121,1833.7,1833.6,40.8]
[1746166470615,1.09047,1833.6,1833.5,4.32723]
[1746166470804,6.01217,1833.6,1833.5,2.67423]
[1746166471010,1.09053,1833.5,1833.4,1.85122]
[1746166471211,2.80253,1833.5,1833.4,1.85122]
[1746166472108,6.49853,1833.5,1833.4,1.85122]
[1746166475710,13.0319509,1833.5,1833.4,1.85122]
[1746166477412,2.72665,1833.3,1832.8,3.2078]
[1746166477612,6.4798,1833.2,1832.8,7.6944]
[1746166477813,1.09083,1833.0,1832.9,1.5876]
[1746166478005,1.09083,1833.0,1832.9,43.47849]
[1746166478212,2.8391,1833.1,1833.0,1.09083]
[1746166478413,1.7483,1833.1,1833.0,2.81353]
[1746166478608,1.09076,1833.2,1833.0,2.81349]
[1746166478812,1.09076,1833.2,1833.1,3.3957]
[1746166479021,1.09076,1833.2,1833.1,4.48647]
[1746166480618,2.83899,1833.3,1833.1,4.48647]
[1746166480822,1.09071,1833.2,1833.1,4.48647]
[1746166481120,1.7483,1833.3,1833.0,4.29861]
[1746166481320,1.09076,1833.2,1833.1,1.6655]
[1746166482216,2.83898,1833.3,1833.1,1.6655]
[1746166482419,2.83898,1833.3,1833.1,2.75623]
[1746166482713,2.83898,1833.3,1833.2,1.7382]
[1746166483712,1.09076,1833.2,1833.1,1.09077]
[1746166483912,2.81106,1833.2,1833.0,7.59929]
[1746166484113,1.09077,1833.1,1833.0,4.7703]
[1746166484322,2.81105,1833.2,1833.0,5.8611]
[1746166484523,2.81105,1833.2,1833.1,1.7382]
[1746166484722,1.7203,1833.2,1833.1,2.82897]
[1746166485522,1.09068,1833.3,1833.1,2.82897]
[1746166485822,1.09068,1833.3,1833.2,1.5837]
[1746166486418,2.77301,1833.4,1833.2,1.5837]
[1746166486622,2.77301,1833.4,1833.3,1.09065]
[1746166486821,2.77301,1833.4,1833.3,1.6344]
[1746166487321,2.77301,1833.4,1833.3,3.2181]
[1746166488023,1.6824,1833.4,1833.3,4.30875]
[1746166488223,2.77299,1833.4,1833.3,3.2181]
[1746166489717,2.77299,1833.4,1833.3,4.30875]
[1746166491327,2.77299,1833.4,1833.3,3.2181]
[1746166491526,2.77299,1833.4,1833.3,4.30875]
[1746166492025,2.77299,1833.4,1833.3,3.2181]
[1746166492926,1.6824,1833.4,1833.0,6.7778]
[1746166493224,2.76099,1833.3,1833.1,3.1953]
[1746166493523,2.76099,1833.3,1833.2,1.6247]
[1746166494919,2.76099,1833.3,1833.2,2.71541]
[1746166496829,1.09062,1833.4,1833.3,1.09065]
[1746166497025,1.09062,1833.4,1833.3,1.6889]
[1746166497828,1.09062,1833.4,1833.3,2.77955]
[1746166498029,1.09062,1833.4,1833.3,1.6889]
[1746166498436,1.09062,1833.4,1833.3,2.77955]
[1746166498626,1.747,1833.5,1833.3,2.77955]
[1746166498931,1.09059,1833.4,1833.3,2.77955]
[1746166500329,1.09059,1833.4,1833.3,4.42765]
[1746166500831,2.83758,1833.5,1833.4,1.09059]
[1746166501031,2.83758,1833.5,1833.4,4.41669]
[1746166501234,2.83758,1833.5,1833.4,3.3261]
[1746166501732,2.83758,1833.5,1833.4,1.7013]
[1746166501935,1.09059,1833.4,1833.3,1.6481]
[1746166502127,2.83129,1833.4,1833.3,1.6481]
[1746166502322,1.09083,1833.0,1832.9,44.0078]
[1746166502528,1.09083,1833.0,1832.9,3.2078]
[1746166503527,4.45023,1833.0,1832.9,3.2078]
[1746166504527,4.45023,1833.0,1832.9,4.29869]
[1746166504729,4.45023,1833.0,1832.9,5.98599]
[1746166505133,4.45023,1833.0,1832.9,4.8951]
[1746166505333,4.45023,1833.0,1832.9,5.98599]
[1746166505943,2.77903,1833.0,1832.9,5.98599]
[1746166506136,2.77903,1833.0,1832.9,7.63029]
[1746166506334,1.6882,1833.0,1832.9,7.63029]
[1746166506538,5.838,1833.3,1832.9,6.5394]
[1746166506739,8.5842,1833.3,1833.1,1.09074]
[1746166506931,2.74621,1833.2,1833.1,1.09074]
[1746166507239,1.6555,1833.2,1833.1,1.09074]
[1746166508234,1.6555,1833.2,1833.1,2.69484]
[1746166508737,5.838,1833.3,1833.2,1.09071]
[1746166508936,11.28749977,1833.3,1833.2,1.09071]
[1746166510143,11.28749977,1833.3,1833.2,2.80331]
[1746166510839,5.44949977,1833.3,1833.2,2.80331]
[1746166512627,2.78343,1833.4,1833.2,2.80331]
[1746166512932,1.7481,1833.3,1833.2,2.80331]
[1746166513342,1.7481,1833.3,1833.2,43.60331]
[1746166515436,2.83875,1833.3,1833.1,7.86852]
[1746166515644,2.83879,1833.3,1833.1,7.86852]
[1746166515941,1.6576,1833.2,1833.1,7.86852]
[1746166516440,1.6576,1833.2,1833.1,4.66072]
[1746166518640,2.74831,1833.2,1833.1,4.66072]
[1746166518838,2.74831,1833.2,1833.0,47.3214]
[1746166518839,1.09077,1833.1,1833.0,6.5214]
[1746166519039,5.99391,1833.1,1833.0,1.09083]
[1746166519239,1.6211,1833.1,1833.0,1.09083]
[1746166519844,1.6211,1833.1,1833.0,2.79283]
[1746166520447,1.6211,1833.1,1833.0,4.39593]
[1746166523451,2.71187,1833.1,1833.0,4.39593]
[1746166523753,1.6211,1833.1,1833.0,4.39593]
[1746166526348,2.71187,1833.1,1833.0,1.702]
[1746166526651,2.71187,1833.1,1832.9,41.89083]
[1746166526952,3.2797,1833.0,1832.9,41.89083]
[1746166528853,3.2797,1833.0,1832.9,43.48373]
[1746166529251,1.6914,1833.0,1832.9,43.48373]
[1746166532454,6.42714771,1833.2,1833.1,1.09077]
[1746166532655,8.07774771,1833.2,1833.1,1.09077]
[1746166532955,8.07774771,1833.2,1833.1,1.6058]
[1746166533155,1.09077,1833.1,1833.0,1.656]
[1746166533455,2.74137,1833.1,1833.0,1.6058]
[1746166533755,2.74137,1833.1,1832.9,41.89087]
[1746166534054,4.46143,1833.0,1832.9,41.89087]
[1746166534354,3.3706,1833.0,1832.9,41.89087]
[1746166535752,4.46143,1833.0,1832.8,11.12981]
[1746166536052,4.49709,1832.9,1832.8,3.565]
[1746166536259,1.09101,1832.7,1832.6,44.0078]
[1746166536554,2.79356,1832.8,1832.7,1.09101]
[1746166536753,2.79356,1832.8,1832.6,4.29883]
[1746166536955,1.7056,1832.7,1832.6,45.09883]
[1746166541158,3.4229,1832.7,1832.6,45.09883]
[1746166542459,4.51391,1832.7,1832.6,45.09883]
[1746166542758,3.4229,1832.7,1832.6,45.09883]
[1746166542954,8.4229,1832.7,1832.1,7.27895468]
[1746166543157,3.2078,1832.3,1832.2,2.69631]
[1746166543352,3.2078,1832.3,1832.2,4.41621]
[1746166544161,1.09125,1832.3,1832.2,3.3249]
[1746166544458,2.82475,1832.3,1832.2,4.41621]
[1746166544860,1.7335,1832.3,1832.2,4.41621]
[1746166550658,3.2078,1832.5,1832.2,6.05313]
[1746166550859,6.82929771,1832.7,1832.6,1.09107]
[1746166551165,8.57549771,1832.7,1832.6,1.09107]
[1746166551665,4.954,1832.7,1832.6,1.09107]
[1746166552363,4.954,1832.7,1832.6,2.78497]
[1746166558159,3.62149771,1833.1,1832.7,2.72751]
[1746166558361,5.28439771,1833.1,1833.0,1.09083]
[1746166558670,3.62149771,1833.1,1833.0,1.09083]
[1746166558969,3.62149771,1833.1,1833.0,46.89083]
[1746166559164,3.62149771,1833.1,1833.0,48.60823]
[1746166559970,3.62149771,1833.1,1833.0,41.89083]
[1746166560865,3.62149771,1833.1,1833.0,43.60823]
[1746166562070,1.6629,1833.2,1833.1,1.09077]
[1746166562371,1.6629,1833.2,1833.1,4.44897]
[1746166562575,1.661,1833.4,1833.1,4.9499]
[1746166562763,3.3655,1833.4,1833.3,1.09065]
[1746166563666,1.7045,1833.4,1833.3,1.09065]
[1746166563872,1.6433,1833.5,1833.4,1.09059]
[1746166564071,7.05019771,1833.6,1833.5,1.09053]
[1746166564371,3.62149771,1833.6,1833.5,1.09053]
[1746166564776,3.62149771,1833.6,1833.5,5.95803]
[1746166566161,1.731,1833.7,1833.6,1.09047]
[1746166566365,1.731,1833.7,1833.6,2.71457]
[1746166567076,1.731,1833.7,1833.6,1.6241]
[1746166567666,1.731,1833.7,1833.6,2.71457]
[1746166568169,2.73369,1833.8,1833.6,2.71457]
[1746166568170,3.62149771,1833.9,1833.8,1.09035]
[1746166568367,3.62149771,1833.9,1833.7,6.31988]
[1746166568566,5.23669771,1833.9,1833.8,1.09035]
[1746166569174,6.32702771,1833.9,1833.7,5.2295]
[1746166569375,1.09035,1833.8,1833.7,5.2295]
[1746166569577,5.91335,1833.8,1833.7,3.561]
[1746166569876,6.4441,1833.8,1833.7,3.561]
[1746166570067,3.2363,1833.8,1833.7,3.561]
[1746166570272,3.2363,1833.8,1833.7,4.65141]
[1746166570675,21.24966258,1834.1,1833.8,1.09035]
[1746166570977,1.7381,1834.0,1833.8,4.39235]
[1746166571177,2.82834,1834.0,1833.8,4.39235]
[1746166571377,1.09031,1833.9,1833.7,3.561]
[1746166571579,2.82841,1833.9,1833.7,4.6514]
[1746166571977,2.82841,1833.9,1833.7,3.561]
[1746166572171,1.7381,1833.8,1833.7,3.561]
[1746166572367,1.7381,1833.8,1833.7,4.65141]
[1746166573486,3.2078,1833.9,1833.8,1.09035]
[1746166573677,3.2078,1833.9,1833.8,2.77535]
[1746166574083,4.8664,1833.9,1833.8,2.77535]
[1746166574378,1.6586,1833.9,1833.8,2.77535]
[1746166575076,2.74889,1833.9,1833.8,1.685]
[1746166575273,1.6586,1833.9,1833.8,1.685]
[1746166575473,1.6586,1833.9,1833.7,4.65137]
[1746166575773,1.611,1833.8,1833.7,4.65137]
[1746166575976,1.611,1833.8,1833.7,3.561]
[1746166576174,3.2696,1833.8,1833.7,3.561]
[1746166577379,4.35995,1833.8,1833.7,3.561]
[1746166577686,4.8593,1833.8,1833.7,3.561]
[1746166577881,4.8593,1833.8,1833.7,4.65141]
[1746166579084,4.8593,1833.8,1833.7,6.34911]
[1746166579288,1.6586,1833.8,1833.7,7.91121]
[1746166579586,4.374,1834.1,1833.9,1.09028]